bitfinex-derivatives/quotes_BTCF0:USTF0_20251229
["timestamp","ask_amount","ask_price","bid_price","bid_amount"]
[1766976605764,0.0112065,89314.0,89305.0,0.02016797]
[1766976606059,0.05632,89325.0,89305.0,0.02016797]
[1766976606759,0.05632,89325.0,89305.0,0.03016797]
[1766976606964,0.0112048,89328.0,89305.0,0.03016797]
[1766976607162,0.09528,89330.0,89306.0,0.0112075]
[1766976607466,0.0112042,89332.0,89309.0,0.0112071]
[1766976607664,0.0112042,89332.0,89310.0,0.1516]
[1766976607962,0.09528,89337.0,89311.0,0.0112068]
[1766976608161,0.0112037,89336.0,89314.0,0.0112064]
[1766976608360,0.0112037,89336.0,89314.0,0.0412064]
[1766976608757,0.0112037,89336.0,89317.0,0.0112061]
[1766976609062,0.3320002,89364.0,89317.0,0.0112061]
[1766976609063,0.3208,89375.0,89318.0,0.0675259]
[1766976609256,0.05632,89357.0,89332.0,7e-08]
[1766976609566,0.0112051,89325.0,89320.0,0.043]
[1766976609767,0.1516,89340.0,89296.0,0.0112086]
[1766976610062,0.0112057,89321.0,89298.0,0.0112085]
[1766976610256,0.1516,89340.0,89299.0,0.01743079]
[1766976610456,0.0112059,89319.0,89311.0,0.00016797]
[1766976611165,0.00016771,89328.0,89311.0,0.00016797]
[1766976611864,0.01137251,89328.0,89311.0,0.00016797]
[1766976612063,0.00016771,89328.0,89311.0,0.00016797]
[1766976612463,0.00016771,89328.0,89311.0,0.03016797]
[1766976612661,0.1516,89340.0,89312.0,0.01741527]
[1766976612968,0.0112046,89329.0,89312.0,0.03]
[1766976613265,0.0112042,89333.0,89312.0,0.03]
[1766976614065,0.1516,89340.0,89312.0,0.03]
[1766976614265,0.0112043,89332.0,89312.0,0.03]
[1766976614463,0.011201,89358.0,89314.0,0.0112065]
[1766976614665,0.09528,89362.0,89328.0,0.0112046]
[1766976614854,0.0112013,89356.0,89330.0,0.0112044]
[1766976615158,0.0112007,89361.0,89333.0,0.011204]
[1766976615353,0.0112007,89361.0,89337.0,0.0112035]
[1766976615561,0.0112007,89361.0,89338.0,0.05632]
[1766976615762,0.0112007,89361.0,89339.0,0.09528]
[1766976616859,0.00223808,89363.0,89339.0,0.1064833]
[1766976617060,0.01343848,89363.0,89339.0,0.1064833]
[1766976617264,0.01343848,89363.0,89339.0,0.09528]
[1766976618069,0.0112009,89359.0,89339.0,0.09528]
[1766976618465,0.0111994,89371.0,89339.0,0.12528]
[1766976618668,0.0111994,89371.0,89346.0,0.01137027]
[1766976618863,0.09528,89383.0,89347.0,0.05632]
[1766976618864,0.0111984,89379.0,89347.0,0.05632]
[1766976619060,0.0111986,89377.0,89347.0,0.08632]
[1766976619371,0.00348513,89397.0,89356.0,0.0112011]
[1766976619665,0.15156,89392.0,89366.0,0.00016787]
[1766976620265,0.0111983,89380.0,89366.0,0.00016787]
[1766976620464,0.0111985,89378.0,89366.0,0.00016787]
[1766976624577,0.09524,89379.0,89366.0,0.00016787]
[1766976624768,0.0111997,89368.0,89356.0,0.15152]
[1766976624969,0.0111997,89368.0,89356.0,0.05628]
[1766976625472,0.0112001,89365.0,89356.0,0.05628]
[1766976625676,0.0112002,89364.0,89352.0,0.00016787]
[1766976625978,0.00016755,89369.0,89346.0,0.00576]
[1766976626174,0.00016755,89369.0,89347.0,0.09524]
[1766976626479,0.00016755,89369.0,89347.0,0.1064423]
[1766976626870,0.00016755,89369.0,89353.0,0.0112015]
[1766976627377,0.0111998,89368.0,89349.0,0.00016787]
[1766976629179,0.00016755,89369.0,89349.0,0.00016787]
[1766976629575,0.01136725,89369.0,89349.0,0.00016787]
[1766976630179,0.00016755,89369.0,89349.0,0.00016787]
[1766976630479,0.0112002,89364.0,89349.0,0.00016787]
[1766976631070,0.0111992,89373.0,89351.0,0.0112018]
[1766976631275,0.0111987,89376.0,89349.0,0.00016787]
[1766976631470,0.09524,89377.0,89349.0,0.03016787]
[1766976632085,0.00016787,89372.0,89354.0,0.0112014]
[1766976632469,0.00016787,89372.0,89359.0,0.0112008]
[1766976632676,0.00016787,89372.0,89356.0,0.0112012]
[1766976633175,0.00016787,89372.0,89353.0,0.0112015]
[1766976633372,0.0111995,89370.0,89349.0,0.00016787]
[1766976633576,0.05628,89369.0,89350.0,0.0112019]
[1766976634485,0.0111997,89368.0,89349.0,0.00016787]
[1766976634675,0.0111997,89368.0,89349.0,0.03016787]
[1766976634874,0.0112002,89364.0,89349.0,0.00016787]
[1766976635776,0.0111999,89367.0,89349.0,0.00016787]
[1766976635975,0.05628,89369.0,89349.0,0.00016787]
[1766976635976,0.05628,89369.0,89350.0,0.011202]
[1766976637085,0.0111999,89367.0,89349.0,0.00016787]
[1766976637279,0.09524,89366.0,89349.0,0.00016787]
[1766976637978,0.09524,89366.0,89349.0,0.01136987]
[1766976638180,0.09524,89366.0,89349.0,0.00016787]
[1766976638686,0.0112003,89364.0,89349.0,0.00016787]
[1766976639688,0.0112005,89362.0,89349.0,0.00016787]
[1766976639988,0.0112008,89360.0,89349.0,0.00016787]
[1766976640190,0.0112011,89357.0,89349.0,0.00016787]
[1766976640589,0.0112007,89360.0,89349.0,0.00016787]
[1766976640790,0.09524,89366.0,89349.0,0.00016787]
[1766976641685,0.09524,89366.0,89349.0,7e-08]
[1766976641993,0.0112031,89341.0,89320.0,0.0112056]
[1766976642188,0.0112031,89341.0,89320.0,0.0412056]
[1766976642390,0.15148,89340.0,89320.0,0.0412056]
[1766976642782,0.15148,89340.0,89321.0,0.00016787]
[1766976642783,0.0112036,89338.0,89321.0,0.00016787]
[1766976642979,0.00016787,89339.0,89321.0,7e-08]
[1766976643288,0.15148,89338.0,89321.0,7e-08]
[1766976643493,0.15148,89337.0,89321.0,7e-08]
[1766976643997,0.05628,89342.0,89321.0,7e-08]
[1766976644194,0.0112022,89349.0,89322.0,0.05628]
[1766976644494,0.10764,89350.0,89334.0,0.0112039]
[1766976644686,0.0112029,89343.0,89323.0,0.09524]
[1766976644891,0.10764,89350.0,89323.0,0.12524]
[1766976645098,0.00016787,89345.0,89332.0,0.0112042]
[1766976645300,0.0112007,89361.0,89328.0,0.00016787]
[1766976645485,0.11212,89360.0,89343.0,0.0112027]
[1766976646393,0.0001678,89360.0,89345.0,0.0112025]
[1766976646599,0.0001678,89360.0,89343.0,0.00016787]
[1766976647300,0.0112009,89359.0,89343.0,0.00016787]
[1766976647590,0.0001678,89360.0,89343.0,0.01137067]
[1766976648091,0.0001678,89360.0,89343.0,0.00016787]
[1766976648296,0.0113686,89360.0,89343.0,0.00016787]
[1766976648502,0.0001678,89360.0,89346.0,0.0112024]
[1766976648692,0.0113686,89360.0,89343.0,0.00016787]
[1766976649397,0.0001678,89360.0,89343.0,0.00016787]
[1766976649693,0.0113685,89360.0,89343.0,0.00016787]
[1766976652195,0.0001678,89360.0,89343.0,0.00016787]
[1766976652404,0.0954078,89360.0,89343.0,0.00016787]
[1766976652604,0.0001678,89360.0,89343.0,0.00016787]
[1766976652803,0.0112012,89356.0,89343.0,0.00016787]
[1766976653004,0.0112008,89359.0,89343.0,0.00016787]
[1766976653306,0.0112012,89356.0,89343.0,0.00016787]
[1766976655406,0.0954078,89360.0,89343.0,0.00016787]
[1766976656308,0.0112015,89354.0,89343.0,0.00016787]
[1766976656808,0.0112015,89354.0,89335.0,0.09524]
[1766976657010,0.0112011,89357.0,89336.0,0.0112037]
[1766976657200,0.0001678,89360.0,89335.0,0.09524]
[1766976657400,0.15152,89359.0,89339.0,0.0112032]
[1766976657600,0.011201,89358.0,89335.0,0.1064437]
[1766976657800,0.0001678,89360.0,89338.0,0.00016787]
[1766976658008,0.0001678,89360.0,89339.0,0.0112033]
[1766976658304,0.0112012,89357.0,89338.0,0.00016787]
[1766976658507,0.0113685,89360.0,89338.0,0.01137127]
[1766976660910,0.011201,89358.0,89338.0,0.01137127]
[1766976661508,0.0001678,89360.0,89338.0,0.00016787]
[1766976662305,0.2237766,89360.0,89326.0,0.09524]
[1766976662603,0.0001678,89360.0,89330.0,0.2236088]
[1766976662811,0.05628,89359.0,89342.0,0.0112029]
[1766976663405,0.05628,89359.0,89342.0,0.01137077]
[1766976664103,0.05628,89359.0,89342.0,0.00016787]
[1766976664500,0.0674808,89359.0,89342.0,0.00016787]
[1766976664902,0.0112015,89354.0,89342.0,0.00016787]
[1766976665408,0.0112011,89357.0,89342.0,0.00016787]
[1766976667311,0.0112011,89357.0,89336.0,0.1064437]
[1766976667907,0.0112015,89354.0,89336.0,0.09524]
[1766976668106,0.0112011,89357.0,89337.0,0.0112036]
[1766976668517,0.0112014,89355.0,89336.0,0.09540787]
[1766976669009,0.011201,89358.0,89337.0,0.0112036]
[1766976669312,0.0112013,89356.0,89337.0,0.0112036]
[1766976671010,0.05628,89359.0,89341.0,0.011203]
[1766976671814,0.05628,89359.0,89336.0,0.00016787]
[1766976672015,0.0674809,89359.0,89339.0,0.0112033]
[1766976672512,0.0112012,89357.0,89339.0,0.0112033]
[1766976672913,0.05628,89359.0,89336.0,0.00016787]
[1766976672914,0.0112014,89355.0,89336.0,0.01137157]
[1766976673407,0.05628,89359.0,89336.0,0.00016787]
[1766976673713,0.05628,89359.0,89341.0,0.011203]
[1766976673913,0.0674809,89359.0,89341.0,0.011203]
[1766976675106,0.0112014,89355.0,89336.0,0.01137157]
[1766976675307,0.05628,89359.0,89336.0,0.01137157]
[1766976675308,0.011201,89358.0,89338.0,0.0112034]
[1766976676216,0.0112013,89356.0,89338.0,0.0112034]
[1766976676916,0.05628,89355.0,89340.0,0.22363961]
[1766976677304,0.05628,89355.0,89336.0,0.00016787]
[1766976677509,0.05628,89355.0,89341.0,0.011203]
[1766976677911,0.0112015,89354.0,89336.0,0.01137147]
[1766976678111,0.0564478,89360.0,89348.0,0.0112021]
[1766976678312,0.0001678,89360.0,89348.0,0.0112021]
[1766976678615,0.0674809,89359.0,89340.0,0.0112032]
[1766976678820,0.0674809,89359.0,89340.0,0.0412032]
[1766976679510,0.0112014,89355.0,89340.0,0.03]
[1766976679711,0.0112014,89355.0,89337.0,0.0112035]
[1766976679908,0.0112014,89355.0,89337.0,0.0412035]
[1766976680112,0.011201,89358.0,89341.0,0.011203]
[1766976681324,0.0112019,89351.0,89336.0,0.00016787]
[1766976681623,0.0112011,89357.0,89339.0,0.0112032]
[1766976682017,0.0112011,89357.0,89341.0,0.011203]
[1766976682621,0.22363961,89351.0,89336.0,0.00016787]
[1766976682817,0.15152,89350.0,89343.0,0.0112027]
[1766976683127,0.0113686,89360.0,89343.0,0.0112027]
[1766976683319,0.0113686,89360.0,89340.0,0.22363961]
[1766976683320,0.011201,89358.0,89340.0,0.23484281]
[1766976683520,0.0112013,89356.0,89340.0,0.0112032]
[1766976683721,0.09524,89355.0,89342.0,0.0112029]
[1766976683914,0.09524,89355.0,89336.0,0.00016787]
[1766976683915,0.09524,89355.0,89338.0,0.0112034]
[1766976684120,0.09524,89355.0,89340.0,0.0112031]
[1766976684728,0.09524,89355.0,89342.0,0.0112029]
[1766976685315,0.0112009,89359.0,89342.0,0.0112029]
[1766976685527,0.05628,89354.0,89342.0,0.0112029]
[1766976685729,0.0112009,89359.0,89342.0,0.0112029]
[1766976685921,0.15152,89358.0,89342.0,0.0112029]
[1766976686321,0.0112014,89355.0,89336.0,0.00016787]
[1766976686522,0.162721,89358.0,89339.0,0.0112032]
[1766976686837,0.22380741,89360.0,89345.0,0.0112025]
[1766976687020,0.05628,89359.0,89345.0,0.0112025]
[1766976687328,0.09524,89358.0,89336.0,0.00016787]
[1766976687522,0.09524,89358.0,89336.0,0.03016787]
[1766976687729,0.09524,89358.0,89346.0,0.0112023]
[1766976687916,0.22380741,89360.0,89346.0,0.0112023]
[1766976688116,0.15152,89359.0,89346.0,0.0112023]
[1766976689025,0.05628,89358.0,89346.0,0.0112023]
[1766976689328,0.0001678,89360.0,89340.0,0.22363961]
[1766976689532,0.22363961,89350.0,89333.0,0.00223883]
[1766976689723,0.0001678,89360.0,89333.0,0.00223883]
[1766976689924,0.15148,89359.0,89333.0,0.00223883]
[1766976690124,0.0112022,89349.0,89333.0,0.00223883]
[1766976690320,0.05624,89354.0,89339.0,0.22363961]
[1766976690528,0.05628,89357.0,89341.0,0.011203]
[1766976690732,0.011202,89351.0,89338.0,0.00016787]
[1766976692933,0.05628,89357.0,89333.0,0.01344283]
[1766976692934,0.22363961,89350.0,89333.0,0.00223883]
[1766976693134,0.22363961,89350.0,89333.0,0.03223883]
[1766976693330,0.22363961,89343.0,89323.0,0.0112053]
[1766976693531,0.22363961,89343.0,89323.0,0.0412053]
[1766976693929,0.00016787,89342.0,89324.0,0.00011199]
[1766976694231,0.22363961,89340.0,89318.0,0.09524]
[1766976694426,0.0112038,89336.0,89319.0,0.0112058]
[1766976694622,0.0112038,89336.0,89319.0,0.0412058]
[1766976694828,0.0112038,89336.0,89319.0,0.03]
[1766976695431,0.09524,89337.0,89319.0,0.03]
[1766976696733,0.05624,89356.0,89327.0,0.22363961]
[1766976696935,0.09524,89359.0,89340.0,0.0112032]
[1766976697135,0.05624,89358.0,89328.0,0.15148]
[1766976697432,0.05624,89358.0,89330.0,0.22363961]
[1766976697637,0.0112012,89357.0,89338.0,0.0112034]
[1766976697831,0.0112014,89355.0,89339.0,0.00016787]
[1766976698935,0.0112017,89352.0,89339.0,0.00016787]
[1766976699124,0.22363961,89350.0,89330.0,0.0112044]
[1766976699329,0.22363961,89350.0,89333.0,0.011204]
[1766976699547,0.22363961,89350.0,89333.0,0.041204]
[1766976700047,0.27991961,89350.0,89333.0,0.03]
[1766976700231,0.05628,89350.0,89333.0,0.03]
[1766976700538,0.00016787,89356.0,89333.0,0.03]
[1766976700729,0.13152,89355.0,89340.0,0.22363961]
[1766976700930,0.13152,89355.0,89339.0,0.0112032]
[1766976701739,0.13152,89355.0,89342.0,0.0112029]
[1766976702036,0.05624,89354.0,89342.0,0.0112029]
[1766976705040,0.00016787,89356.0,89342.0,0.0112029]
[1766976705235,0.05624,89355.0,89342.0,0.0112029]
[1766976708038,0.05624,89355.0,89332.0,0.0112042]
[1766976708239,0.05624,89355.0,89340.0,0.22363961]
[1766976708434,0.00016787,89356.0,89340.0,0.22363961]
[1766976708743,7e-08,89356.0,89341.0,0.011203]
[1766976709047,7e-08,89357.0,89352.0,0.0112016]
[1766976709539,7e-08,89357.0,89340.0,0.22363961]
[1766976709540,8e-08,89365.0,89357.0,0.011201]
[1766976709844,8e-08,89365.0,89352.0,0.00016787]
[1766976712243,8e-08,89365.0,89340.0,0.22363961]
[1766976712546,0.0112006,89362.0,89345.0,0.0112025]
[1766976712736,0.0112006,89362.0,89345.0,0.0412025]
[1766976713136,0.01120028,89365.0,89346.0,0.02871738]
[1766976713337,0.01120028,89365.0,89347.0,0.01751498]
[1766976713638,0.0112006,89361.0,89343.0,0.0112028]
[1766976713838,0.0112006,89361.0,89344.0,0.01751498]
[1766976714039,0.0112006,89361.0,89345.0,0.01751498]
[1766976714239,0.0112006,89361.0,89346.0,0.01751498]
[1766976714536,0.00016787,89370.0,89357.0,0.011201]
[1766976714736,0.05624,89369.0,89357.0,0.011201]
[1766976715147,0.05624,89368.0,89357.0,0.011201]
[1766976715347,0.05624,89368.0,89353.0,0.0112015]
[1766976716444,0.0111998,89367.0,89338.0,0.15148]
[1766976716749,0.05624,89367.0,89340.0,0.0112031]
[1766976716941,0.05624,89367.0,89341.0,0.01751443]
[1766976717138,0.0674399,89367.0,89342.0,0.01751443]
[1766976717449,0.0674399,89367.0,89349.0,0.011202]
[1766976717640,0.0674399,89367.0,89349.0,0.041202]
[1766976718146,0.05624,89367.0,89352.0,0.0112017]
[1766976718340,0.05624,89367.0,89347.0,0.0112023]
[1766976718540,0.05624,89367.0,89347.0,0.0412023]
[1766976719451,0.0112002,89365.0,89347.0,0.0412023]
[1766976719639,0.05624,89367.0,89347.0,0.0412023]
[1766976719833,0.0112,89366.0,89347.0,0.0412023]
[1766976720451,0.05624,89367.0,89347.0,0.03]
[1766976720648,0.05624,89367.0,89338.0,0.15148]
[1766976720951,0.0112008,89360.0,89338.0,0.1626834]
[1766976721139,0.15148,89359.0,89338.0,0.1064434]
[1766976721336,0.0112003,89364.0,89338.0,0.09524]
[1766976721541,0.15148,89363.0,89345.0,0.0112025]
[1766976721742,0.05624,89362.0,89341.0,0.011203]
[1766976721947,0.15148,89362.0,89341.0,0.011203]
[1766976722541,0.15148,89362.0,89343.0,0.0112027]
[1766976724054,0.0112007,89361.0,89340.0,0.0112032]
[1766976724252,0.0112007,89361.0,89340.0,0.0412032]
[1766976724552,0.0112014,89355.0,89338.0,0.09524]
[1766976724742,0.0674414,89355.0,89336.0,0.0112037]
[1766976725056,0.0674414,89355.0,89336.0,0.0412037]
[1766976725555,0.05624,89356.0,89336.0,0.03]
[1766976726449,0.05624,89356.0,89341.0,0.011203]
[1766976727056,0.05624,89356.0,89341.0,0.0112031]
[1766976727252,0.05624,89356.0,89343.0,0.0112027]
[1766976729255,0.0112005,89362.0,89343.0,0.0112027]
[1766976729455,0.05624,89357.0,89343.0,0.0112027]
[1766976731548,0.0112017,89353.0,89334.0,0.1064439]
[1766976731758,0.0112017,89353.0,89334.0,0.1364439]
[1766976732058,0.0112017,89353.0,89336.0,0.0112036]
[1766976732257,0.0112012,89356.0,89336.0,0.0112036]
[1766976732462,0.0112012,89356.0,89336.0,0.0312036]
[1766976733753,0.05624,89357.0,89338.0,0.0112034]
[1766976734357,0.05624,89357.0,89340.0,0.0112031]
[1766976734560,0.05624,89357.0,89333.0,0.09747883]
[1766976734761,0.05624,89357.0,89333.0,0.12747883]
[1766976736156,0.05624,89357.0,89339.0,0.0112033]
[1766976736959,0.0112012,89356.0,89336.0,0.0112037]
[1766976737261,0.05624,89357.0,89336.0,0.03]
[1766976737468,0.0112017,89353.0,89336.0,0.0412037]
[1766976737757,0.0674412,89357.0,89336.0,0.0412037]
[1766976737956,0.0674412,89357.0,89336.0,0.0112037]
[1766976738263,0.05624,89357.0,89333.0,0.00223883]
[1766976738450,0.0112016,89353.0,89325.0,0.05624]
[1766976738649,0.00016787,89348.0,89325.0,0.08624]
[1766976738847,0.05624,89347.0,89325.0,0.08624]
[1766976739361,0.05624,89347.0,89332.0,0.0112041]
[1766976739559,0.05624,89360.0,89346.0,0.0112024]
[1766976739764,0.05624,89360.0,89334.0,0.0112039]
[1766976739765,0.05624,89360.0,89352.0,0.0112016]
[1766976740055,0.0111993,89372.0,89352.0,0.0112016]
[1766976740249,0.23477181,89390.0,89352.0,0.0112016]
[1766976740250,0.0111995,89370.0,89352.0,0.0112016]
[1766976740451,0.0111995,89370.0,89347.0,0.01119]
[1766976740452,0.15148,89369.0,89349.0,0.0112021]
[1766976740650,0.15148,89369.0,89352.0,0.00016787]
[1766976740860,0.0112001,89366.0,89347.0,0.01119]
[1766976741064,0.0112001,89366.0,89336.0,0.05624]
[1766976741264,0.1626796,89369.0,89337.0,0.01751544]
[1766976741560,0.1626796,89369.0,89338.0,0.01751544]
[1766976741762,0.0111999,89367.0,89339.0,0.01751544]
[1766976741960,0.0111999,89367.0,89340.0,0.01751544]
[1766976742160,0.0111999,89367.0,89341.0,0.01751544]
[1766976742363,0.0111999,89367.0,89342.0,0.01751544]
[1766976742556,0.0112016,89353.0,89342.0,0.03]
[1766976742864,0.05624,89352.0,89330.0,0.0112044]
[1766976743062,0.00016787,89350.0,89330.0,0.0412044]
[1766976743260,0.00016787,89350.0,89330.0,0.03]
[1766976743461,0.0112028,89344.0,89323.0,0.15148]
[1766976743665,0.05624,89343.0,89324.0,0.0112052]
[1766976743856,0.05624,89342.0,89323.0,0.09524]
[1766976744053,0.05624,89342.0,89323.0,0.1364453]
[1766976744256,0.05624,89342.0,89325.0,0.011205]
[1766976744758,0.05624,89342.0,89327.0,0.0112047]
[1766976746051,0.05624,89342.0,89323.0,0.09524]
[1766976746256,0.00016787,89350.0,89323.0,0.12524]
[1766976746257,0.05624,89349.0,89323.0,0.12524]
[1766976747761,0.00016787,89350.0,89339.0,0.0112033]
[1766976747956,0.00016787,89350.0,89341.0,0.011203]
[1766976748159,0.00016787,89350.0,89332.0,0.05624]
[1766976748160,0.00016787,89350.0,89336.0,0.0112036]
[1766976748956,0.00016787,89350.0,89332.0,0.05624]
[1766976749156,0.01136987,89350.0,89333.0,0.0112041]
[1766976749365,0.00016787,89350.0,89335.0,0.0112037]
[1766976749567,0.00016787,89350.0,89335.0,0.0312037]
[1766976750067,0.00016787,89350.0,89335.0,0.0112037]
[1766976750867,0.00016787,89350.0,89332.0,0.05624]
[1766976751057,0.00016787,89350.0,89343.0,0.0112027]
[1766976751253,7e-08,89350.0,89336.0,0.09524]
[1766976751454,7e-08,89350.0,89349.0,0.0112021]
[1766976752165,7e-08,89350.0,89341.0,0.0001678]
[1766976752466,7e-08,89350.0,89345.0,0.0112026]
[1766976752663,7e-08,89350.0,89333.0,0.011204]
[1766976752865,7e-08,89350.0,89333.0,0.03]
[1766976754158,7e-08,89350.0,89334.0,0.0112039]
[1766976754358,7e-08,89350.0,89334.0,0.0412039]
[1766976754555,0.05624007,89350.0,89334.0,0.03]
[1766976756970,7e-08,89350.0,89334.0,0.03]
[1766976757270,7e-08,89350.0,89334.0,0.18148]
[1766976757654,7e-08,89350.0,89339.0,0.0112032]
[1766976759867,7e-08,89350.0,89336.0,0.0112037]
[1766976760168,7e-08,89350.0,89336.0,0.0412037]
[1766976760369,7e-08,89350.0,89336.0,0.03]
[1766976763169,7e-08,89350.0,89339.0,0.0112033]
[1766976763475,7e-08,89350.0,89339.0,0.0412033]
[1766976766575,7e-08,89350.0,89341.0,0.011203]
[1766976768563,7e-08,89350.0,89337.0,0.0112035]
[1766976768766,7e-08,89350.0,89337.0,0.0412035]
[1766976769667,7e-08,89350.0,89337.0,0.03]
[1766976770173,0.09524007,89350.0,89331.0,0.1064443]
[1766976770376,0.09524007,89350.0,89331.0,0.1364443]
[1766976770767,0.09524007,89350.0,89333.0,0.011204]
[1766976770969,0.09524007,89350.0,89333.0,0.041204]
[1766976771372,0.09524007,89350.0,89333.0,0.03]
[1766976771677,0.05624,89349.0,89333.0,0.03]
[1766976771974,0.00223808,89363.0,89333.0,0.03]
[1766976772168,0.15148,89362.0,89344.0,0.0112026]
[1766976772368,0.1626805,89362.0,89344.0,0.0112026]
[1766976772976,0.22359447,89360.0,89344.0,0.0112026]
[1766976773867,0.16284837,89362.0,89344.0,0.0112026]
[1766976776279,0.0112008,89360.0,89341.0,0.011203]
[1766976776480,0.0112008,89360.0,89341.0,0.041203]
[1766976776971,0.0112008,89360.0,89341.0,0.011203]
[1766976778577,0.15164787,89362.0,89342.0,0.0112029]
[1766976778776,0.00016787,89362.0,89342.0,0.0112029]
[1766976779079,0.15148,89361.0,89350.0,0.22359447]
[1766976779977,0.15148,89361.0,89346.0,0.0112024]
[1766976780374,0.15148,89361.0,89343.0,0.0112028]
[1766976781483,0.00016787,89362.0,89345.0,0.0112025]
[1766976781785,0.15148,89361.0,89345.0,0.0112025]
[1766976781984,0.15148,89361.0,89340.0,0.22359447]
[1766976781985,0.15148,89361.0,89342.0,0.0112029]
[1766976782481,0.15148,89361.0,89344.0,0.0112026]
[1766976786887,0.0112011,89357.0,89340.0,0.0112032]
[1766976787088,0.23479517,89360.0,89340.0,0.0412032]
[1766976789285,0.23479517,89360.0,89342.0,0.0112029]
[1766976789487,0.22359447,89360.0,89342.0,0.0112029]
[1766976789792,0.15148,89361.0,89335.0,0.03019592]
[1766976789983,0.15148,89361.0,89335.0,0.06019592]
[1766976790889,0.1626807,89361.0,89335.0,0.06019592]
[1766976791091,0.15148,89361.0,89332.0,0.0112041]
[1766976791287,0.22359447,89360.0,89340.0,0.0112031]
[1766976791487,0.0112014,89355.0,89330.0,0.22359447]
[1766976791796,0.05624,89354.0,89334.0,0.0112039]
[1766976792594,0.0112017,89353.0,89334.0,0.0112039]
[1766976792790,0.22359447,89350.0,89328.0,0.0112047]
[1766976792995,0.0112023,89347.0,89328.0,0.03]
[1766976793294,0.0112027,89345.0,89318.0,0.19154319]
[1766976793482,0.00016787,89340.0,89320.0,0.22359447]
[1766976793795,0.15148,89339.0,89320.0,0.03]
[1766976794597,0.15148,89339.0,89312.0,0.05624]
[1766976794790,0.15148,89339.0,89322.0,0.0112054]
[1766976795694,0.15148,89339.0,89310.0,0.22359447]
[1766976795896,0.0112035,89338.0,89310.0,0.25359447]
[1766976796487,0.0112035,89338.0,89317.0,0.011206]
[1766976796789,0.0112035,89338.0,89317.0,0.041206]
[1766976799793,0.15148,89339.0,89321.0,0.0112055]
[1766976801398,0.0112035,89338.0,89317.0,0.011206]
[1766976801584,0.0112035,89338.0,89317.0,0.041206]
[1766976801788,0.22359447,89330.0,89317.0,0.041206]
[1766976802096,0.05624,89329.0,89317.0,0.041206]
[1766976802302,0.05624,89329.0,89317.0,0.03]
[1766976803196,0.09524,89328.0,89306.0,0.15148]
[1766976803497,0.09524,89328.0,89310.0,0.0112069]
[1766976803699,0.09524,89328.0,89315.0,0.0112062]
[1766976804000,0.09524,89328.0,89315.0,0.03]
[1766976804295,0.09524,89328.0,89317.0,0.011206]
[1766976804499,0.05624,89328.0,89326.0,0.0112049]
[1766976804695,0.04124,89328.0,89322.0,0.0112054]
[1766976804894,0.05624,89328.0,89322.0,0.0112054]
[1766976806594,0.05624,89328.0,89319.0,0.0112058]
[1766976807599,0.05624,89328.0,89316.0,0.0112062]
[1766976808000,0.05624,89328.0,89306.0,0.15148]
[1766976808193,0.05624,89328.0,89306.0,0.18148]
[1766976808400,0.05624,89328.0,89312.0,0.0112067]
[1766976808601,0.22359447,89322.0,89312.0,0.0412067]
[1766976808896,0.0112045,89330.0,89312.0,0.0412067]
[1766976808897,0.05624,89323.0,89312.0,0.0412067]
[1766976809100,0.05624,89323.0,89312.0,0.03]
[1766976809401,0.22359447,89322.0,89306.0,0.1626874]
[1766976809591,0.22359447,89322.0,89306.0,0.1926874]
[1766976810293,0.05624,89323.0,89306.0,0.1926874]
[1766976811499,0.22359447,89320.0,89306.0,0.03]
[1766976811697,0.0112072,89308.0,89291.0,0.04006319]
[1766976811889,0.22359447,89301.0,89285.0,0.0112101]
[1766976812106,0.27983447,89301.0,89287.0,0.0112097]
[1766976812292,0.27983447,89301.0,89290.0,0.0112094]
[1766976812503,0.27983447,89301.0,89290.0,0.0312094]
[1766976812697,0.0001425,89300.0,89290.0,0.0312094]
[1766976813198,0.0001425,89300.0,89290.0,0.0162094]
[1766976813394,0.0001425,89300.0,89284.0,0.09524]
[1766976813600,0.0001425,89300.0,89284.0,0.12524]
[1766976813803,0.0001425,89300.0,89290.0,0.0112094]
[1766976813990,0.00016798,89308.0,89298.0,0.0112085]
[1766976814197,0.04712,89307.0,89298.0,0.0112085]
[1766976814499,0.04712,89307.0,89297.0,0.0112086]
[1766976816197,0.00016798,89308.0,89297.0,0.0112086]
[1766976816503,0.05624,89307.0,89297.0,0.0112086]
[1766976817105,0.05624,89307.0,89294.0,0.0112089]
[1766976818410,0.00016798,89309.0,89292.0,0.00016798]
[1766976818708,0.05624,89308.0,89292.0,0.00016798]
[1766976819208,0.05624,89308.0,89296.0,0.0112086]
[1766976820309,0.05624,89308.0,89293.0,0.0112091]
[1766976821110,0.05624,89308.0,89296.0,0.0112087]
[1766976822004,0.00016798,89309.0,89296.0,0.0112087]
[1766976822207,0.05624,89307.0,89296.0,0.0112087]
[1766976822608,0.00016798,89309.0,89304.0,0.0112076]
[1766976822814,0.09528,89318.0,89299.0,0.22359447]
[1766976823013,0.22359447,89330.0,89313.0,0.0112065]
[1766976823014,0.05624,89319.0,89313.0,0.0112065]
[1766976823215,0.05624,89319.0,89310.0,0.011207]
[1766976824106,0.00016798,89323.0,89310.0,0.011207]
[1766976824309,0.05624,89322.0,89310.0,0.011207]
[1766976825915,0.05624,89322.0,89307.0,0.0112073]
[1766976826813,0.05624,89322.0,89309.0,0.011207]
[1766976827013,0.05624,89322.0,89312.0,0.0112067]
[1766976828911,0.05624,89321.0,89312.0,0.0112067]
[1766976829312,0.05624,89321.0,89308.0,0.0112072]
[1766976830309,0.05624,89321.0,89306.0,0.00016798]
[1766976830512,0.23480027,89320.0,89296.0,0.09528]
[1766976830712,0.22359447,89320.0,89296.0,0.12528]
[1766976831015,0.22359447,89320.0,89305.0,0.0112075]
[1766976831219,0.05624,89321.0,89305.0,0.0112075]
[1766976832618,0.37511447,89320.0,89304.0,0.01137568]
[1766976833117,0.15152,89320.0,89304.0,0.01137568]
[1766976833508,0.1627258,89320.0,89304.0,0.00016798]
[1766976834008,0.00016798,89323.0,89308.0,0.0112072]
[1766976834210,0.00016798,89323.0,89304.0,0.00016798]
[1766976834407,0.05624,89322.0,89315.0,0.0112063]
[1766976834625,0.00223883,89333.0,89317.0,0.011206]
[1766976834806,0.15152,89332.0,89304.0,0.00016798]
[1766976835108,0.15152,89332.0,89315.0,0.0112063]
[1766976835308,0.15168798,89332.0,89315.0,0.0112063]
[1766976836114,0.15168798,89332.0,89306.0,0.15152]
[1766976836320,0.15168798,89332.0,89306.0,0.18152]
[1766976837220,0.0112047,89329.0,89306.0,0.18152]